fUSD/lending_fUSD_20250113
["ID","MTS","AMOUNT","RATE_DAILY","PERIOD"]
[348772489,1736778656064,-158.901741,0.00010807,2]
[348772490,1736778656073,-156.456816,0.00010807,2]
[348772491,1736778656082,-158.901735,0.00010807,2]
[348772492,1736778656091,-158.901736,0.00010807,2]
[348772493,1736778656100,-500.0,0.00010809,2]
[348772494,1736778656109,-500.0,0.00010809,2]
[348772495,1736778656119,-375.31586238,0.00010809,2]
[348772496,1736778656128,-500.0,0.00010809,2]
[348772497,1736778656137,-564.25,0.00010809,2]
[348772498,1736778656146,-500.0,0.00010815,2]
[348772499,1736778656156,-500.0,0.00010815,2]
[348772500,1736778656165,-1556.1,0.00010815,2]
[348772501,1736778656175,-3430.53,0.00010815,2]
[348772502,1736778656183,-653.43,0.00010815,2]
[348772503,1736778656193,-1420.12,0.00010815,2]
[348772504,1736778656204,-2639.99,0.00010815,2]
[348772505,1736778656213,-4588.64,0.00010815,2]
[348772506,1736778656223,-594.07,0.00010815,2]
[348772507,1736778656237,-501.94,0.00010815,2]
[348772508,1736778656247,-2905.46,0.00010815,2]
[348772509,1736778656256,-1140.05,0.00010815,2]
[348772510,1736778656265,-1363.55,0.00010815,2]
[348772511,1736778656274,-2144.32,0.00010815,2]
[348772512,1736778656283,-500.0,0.00010815,2]
[348772513,1736778656292,-500.0,0.00010815,2]
[348772514,1736778656302,-500.0,0.00010815,2]
[348772515,1736778656311,-3831.6,0.00010815,2]
[348772516,1736778656320,-633.85,0.00010815,2]
[348772517,1736778656330,-916.25,0.00010815,2]
[348772518,1736778656339,-590.46,0.00010815,2]
[348772519,1736778656349,-1826.92,0.00010815,2]
[348772520,1736778656358,-1253.09,0.00010815,2]
[348772521,1736778656368,-538.77,0.00010815,2]
[348772522,1736778656377,-500.0,0.00010816,2]
[348772523,1736778656387,-500.0,0.00010816,2]
[348772524,1736778656396,-233.69950969,0.00010816,2]
[348772525,1736778656406,-500.0,0.00010816,2]
[348772526,1736778656416,-500.0,0.00010816,2]
[348772527,1736778656425,-500.0,0.00010816,2]
[348772528,1736778656434,-500.0,0.00010816,2]
[348772529,1736778656443,-500.0,0.00010816,2]
[348772530,1736778656452,-163.94341831,0.00010816,2]
[348772531,1736778656462,-500.0,0.00010816,2]
[348772532,1736778656471,-500.0,0.00010816,2]
[348772533,1736778656484,-500.0,0.00010816,2]
[348772534,1736778656493,-500.0,0.00010816,2]
[348772535,1736778656502,-500.0,0.00010816,2]
[348772536,1736778656511,-500.0,0.00010816,2]
[348772537,1736778656521,-500.0,0.00010816,2]
[348772538,1736778656530,-500.0,0.00010816,2]
[348772539,1736778656539,-500.0,0.00010816,2]
[348772540,1736778656549,-500.0,0.00010816,2]
[348772541,1736778656559,-500.0,0.00010816,2]
[348772542,1736778656570,-500.0,0.00010816,2]
[348772543,1736778656579,-500.0,0.00010816,2]
[348772544,1736778656588,-500.0,0.00010816,2]
[348772545,1736778656597,-500.0,0.00010816,2]
[348772546,1736778656607,-500.0,0.00010816,2]
[348772547,1736778656616,-500.0,0.00010816,2]
[348772548,1736778656625,-500.0,0.00010816,2]
[348772549,1736778656634,-500.0,0.00010816,2]
[348772550,1736778656644,-500.0,0.00010816,2]
[348772551,1736778656653,-500.0,0.00010816,2]
[348772552,1736778656663,-500.0,0.00010816,2]
[348772553,1736778656672,-500.0,0.00010816,2]
[348772554,1736778656681,-500.0,0.00010816,2]
[348772555,1736778656691,-500.0,0.00010816,2]
[348772556,1736778656701,-500.0,0.00010816,2]
[348772557,1736778656711,-500.0,0.00010816,2]
[348772558,1736778656721,-500.0,0.00010816,2]
[348772559,1736778656733,-500.0,0.00010816,2]
[348772560,1736778656743,-500.0,0.00010816,2]
[348772561,1736778656753,-500.0,0.00010816,2]
[348772562,1736778656763,-500.0,0.00010816,2]
[348772563,1736778656773,-520.83,0.00010816,2]
[348772564,1736778656784,-500.0,0.00010816,2]
[348772565,1736778656794,-500.0,0.00010816,2]
[348772566,1736778656804,-500.0,0.00010816,2]
[348772567,1736778656814,-500.0,0.00010816,2]
[348772568,1736778656824,-500.0,0.00010816,2]
[348772569,1736778656834,-500.0,0.00010816,2]
[348772570,1736778656844,-500.0,0.00010816,2]
[348772571,1736778656858,-500.0,0.00010816,2]
[348772572,1736778656869,-500.0,0.00010816,2]
[348772573,1736778656879,-391.41878267,0.00010816,2]
[348772574,1736778656889,-500.0,0.00010816,2]
[348772575,1736778656899,-500.0,0.00010816,2]
[348772576,1736778656909,-500.0,0.00010816,2]
[348772577,1736778656919,-500.0,0.00010816,2]
[348772578,1736778656932,-523.51123551,0.00010816,2]
[348772579,1736778656942,-500.0,0.00010816,2]
[348772580,1736778656952,-500.0,0.00010816,2]
[348772581,1736778656963,-500.0,0.00010816,2]
[348772582,1736778656974,-500.0,0.00010816,2]
[348772583,1736778656987,-216.20492307,0.00010816,2]
[348772584,1736778656997,-500.0,0.00010816,2]
[348772585,1736778657007,-525.21,0.00010816,2]
[348772586,1736778657018,-198.52,0.00010816,2]
[348772587,1736778657029,-500.0,0.00010816,2]
[348772588,1736778657039,-500.0,0.00010816,2]
[348772589,1736778657049,-500.0,0.00010816,2]
[348772590,1736778657059,-218.81399497,0.00010816,2]
[348772591,1736778657071,-500.0,0.00010816,2]
[348772592,1736778657081,-500.0,0.00010816,2]
[348772593,1736778657091,-500.0,0.00010816,2]
[348772594,1736778657102,-500.0,0.00010816,2]
[348772595,1736778657112,-500.0,0.00010816,2]
[348772596,1736778657123,-500.0,0.00010816,2]
[348772597,1736778657133,-500.0,0.00010816,2]
[348772598,1736778657144,-500.0,0.00010816,2]
[348772599,1736778657154,-500.0,0.00010816,2]
[348772600,1736778657165,-500.0,0.00010816,2]
[348772601,1736778657175,-500.0,0.00010816,2]
[348772602,1736778657186,-500.0,0.00010816,2]
[348772603,1736778657196,-500.0,0.00010816,2]
[348772604,1736778657206,-500.0,0.00010816,2]
[348772605,1736778657216,-500.0,0.00010816,2]
[348772606,1736778657226,-500.0,0.00010816,2]
[348772607,1736778657238,-500.0,0.00010816,2]
[348772608,1736778657248,-500.0,0.00010816,2]
[348772609,1736778657258,-500.0,0.00010816,2]
[348772610,1736778657267,-500.0,0.00010816,2]
[348772611,1736778657278,-500.0,0.00010816,2]
[348772612,1736778657288,-500.0,0.00010816,2]
[348772613,1736778657298,-500.0,0.00010816,2]
[348772614,1736778657309,-500.0,0.00010816,2]
[348772615,1736778657320,-504.58840305,0.00010816,2]
[348772616,1736778657330,-500.0,0.00010816,2]
[348772617,1736778657341,-604.16,0.00010816,2]
[348772618,1736778657351,-619.2724361,0.00010816,2]
[348772619,1736778657361,-500.0,0.00010816,2]
[348772620,1736778657371,-500.0,0.00010816,2]
[348772621,1736778657384,-500.0,0.00010816,2]
[348772622,1736778657397,-500.0,0.00010816,2]
[348772623,1736778657408,-500.0,0.00010816,2]
[348772624,1736778657418,-500.0,0.00010816,2]
[348772625,1736778657429,-500.0,0.00010816,2]
[348772626,1736778657439,-476.76,0.00010816,2]
[348772627,1736778657450,-500.0,0.00010816,2]
[348772628,1736778657460,-508.08364678,0.00010816,2]
[348772629,1736778657471,-500.0,0.00010816,2]
[348772630,1736778657486,-500.0,0.00010816,2]
[348772631,1736778657497,-500.0,0.00010816,2]
[348772632,1736778657508,-353.85,0.00010816,2]
[348772633,1736778657519,-506.91,0.00010816,2]
[348772634,1736778657534,-231.65,0.00010816,2]
[348772635,1736778657555,-500.0,0.00010816,2]
[348772636,1736778657568,-500.0,0.00010816,2]
[348772637,1736778657579,-500.0,0.00010816,2]
[348772638,1736778657590,-500.0,0.00010816,2]
[348772639,1736778657601,-500.0,0.00010816,2]
[348772640,1736778657611,-500.0,0.00010816,2]
[348772641,1736778657622,-500.0,0.00010816,2]
[348772642,1736778657633,-500.0,0.00010816,2]
[348772643,1736778657644,-500.0,0.00010816,2]
[348772644,1736778657656,-366.56890735,0.00010816,2]
[348772645,1736778657672,-500.0,0.00010816,2]
[348772646,1736778657683,-500.0,0.00010816,2]
[348772647,1736778657693,-500.0,0.00010816,2]
[348772648,1736778657703,-500.0,0.00010816,2]
[348772649,1736778657714,-500.0,0.00010816,2]
[348772650,1736778657724,-500.0,0.00010816,2]
[348772651,1736778657737,-500.0,0.00010816,2]
[348772652,1736778657747,-500.0,0.00010816,2]
[348772653,1736778657759,-500.0,0.00010816,2]
[348772654,1736778657770,-500.0,0.00010816,2]
[348772655,1736778657782,-500.0,0.00010816,2]
[348772656,1736778657794,-500.0,0.00010816,2]
[348772657,1736778657805,-500.0,0.00010816,2]
[348772658,1736778657816,-500.0,0.00010816,2]
[348772659,1736778657827,-500.0,0.00010816,2]
[348772660,1736778657837,-500.0,0.00010816,2]
[348772661,1736778657851,-500.0,0.00010816,2]
[348772662,1736778657866,-500.0,0.00010816,2]
[348772663,1736778657877,-500.0,0.00010816,2]
[348772664,1736778657888,-500.0,0.00010816,2]
[348772665,1736778657900,-500.0,0.00010816,2]
[348772666,1736778657916,-500.0,0.00010816,2]
[348772667,1736778657937,-500.0,0.00010816,2]
[348772668,1736778657952,-500.0,0.00010816,2]
[348772669,1736778657964,-502.63527972,0.00010816,2]
[348772670,1736778657980,-500.0,0.00010816,2]
[348772671,1736778657995,-500.0,0.00010816,2]
[348772672,1736778658008,-500.0,0.00010816,2]
[348772673,1736778658021,-500.0,0.00010816,2]
[348772674,1736778658037,-500.0,0.00010816,2]
[348772675,1736778658051,-500.0,0.00010816,2]
[348772676,1736778658064,-335.77,0.00010816,2]
[348772677,1736778658077,-500.0,0.00010816,2]
[348772678,1736778658088,-500.0,0.00010816,2]
[348772679,1736778658101,-508.64,0.00010816,2]
[348772680,1736778658115,-501.65991163,0.00010816,2]
[348772681,1736778658128,-500.0,0.00010816,2]
[348772682,1736778658142,-624.23,0.00010816,2]
[348772683,1736778658155,-500.0,0.00010816,2]
[348772684,1736778658168,-500.0,0.00010816,2]
[348772685,1736778658182,-500.0,0.00010816,2]
[348772686,1736778658197,-506.79806704,0.00010816,2]
[348772687,1736778658210,-500.0,0.00010816,2]
[348772688,1736778658223,-489.01203029,0.00010816,2]
[348772689,1736778658238,-500.0,0.00010816,2]
[348772690,1736778658250,-500.0,0.00010816,2]
[348772691,1736778658263,-557.21,0.00010816,2]
[348772692,1736778658276,-500.0,0.00010816,2]
[348772693,1736778658290,-500.0,0.00010816,2]
[348772694,1736778658302,-500.0,0.00010816,2]
[348772695,1736778658314,-500.0,0.00010816,2]
[348772696,1736778658325,-500.0,0.00010816,2]
[348772697,1736778658337,-500.0,0.00010816,2]
[348772698,1736778658349,-500.0,0.00010816,2]
[348772699,1736778658366,-500.0,0.00010816,2]
[348772700,1736778658376,-533.26,0.00010816,2]
[348772701,1736778658387,-500.0,0.00010816,2]
[348772702,1736778658397,-500.0,0.00010816,2]
[348772703,1736778658410,-500.0,0.00010816,2]
[348772704,1736778658425,-500.0,0.00010816,2]
[348772705,1736778658437,-500.0,0.00010816,2]
[348772706,1736778658448,-502.12193717,0.00010816,2]
[348772707,1736778658458,-500.0,0.00010816,2]
[348772708,1736778658470,-500.0,0.00010816,2]
[348772709,1736778658485,-500.0,0.00010816,2]
[348772710,1736778658497,-500.0,0.00010816,2]
[348772711,1736778658509,-500.0,0.00010816,2]
[348772712,1736778658521,-500.0,0.00010816,2]
[348772713,1736778658532,-500.0,0.00010816,2]
[348772714,1736778658544,-500.0,0.00010816,2]
[348772715,1736778658555,-500.0,0.00010816,2]
[348772716,1736778658567,-500.0,0.00010816,2]
[348772717,1736778658578,-500.0,0.00010816,2]
[348772718,1736778658590,-500.0,0.00010816,2]
[348772719,1736778658602,-500.0,0.00010816,2]
[348772720,1736778658614,-602.05,0.00010816,2]
[348772721,1736778658625,-500.0,0.00010816,2]
[348772722,1736778658637,-500.0,0.00010816,2]
[348772723,1736778658649,-500.0,0.00010816,2]
[348772724,1736778658662,-500.0,0.00010816,2]
[348772725,1736778658674,-500.0,0.00010816,2]
[348772726,1736778658685,-500.0,0.00010816,2]
[348772727,1736778658697,-500.0,0.00010816,2]
[348772728,1736778658709,-500.0,0.00010816,2]
[348772729,1736778658720,-500.0,0.00010816,2]
[348772730,1736778658737,-500.0,0.00010816,2]
[348772731,1736778658749,-500.0,0.00010816,2]
[348772732,1736778658761,-500.0,0.00010816,2]
[348772733,1736778658773,-500.0,0.00010816,2]
[348772734,1736778658787,-501.7988762,0.00010816,2]
[348772735,1736778658799,-611.37,0.00010816,2]
[348772736,1736778658811,-500.0,0.00010816,2]
[348772737,1736778658822,-500.0,0.00010816,2]
[348772738,1736778658834,-253.14793663,0.00010816,2]
[348772739,1736778658853,-500.0,0.00010816,2]
[348772740,1736778658866,-628.7206766,0.00010816,2]
[348772741,1736778658878,-500.0,0.00010816,2]
[348772742,1736778658892,-500.0,0.00010816,2]
[348772743,1736778658904,-500.0,0.00010816,2]
[348772744,1736778658915,-500.0,0.00010816,2]
[348772745,1736778658928,-500.0,0.00010816,2]
[348772746,1736778658941,-500.0,0.00010816,2]
[348772747,1736778658952,-500.0,0.00010816,2]
[348772748,1736778658964,-500.0,0.00010816,2]
[348772749,1736778658976,-500.0,0.00010816,2]
[348772750,1736778658989,-500.0,0.00010816,2]
[348772751,1736778659001,-500.0,0.00010816,2]
[348772752,1736778659012,-500.0,0.00010816,2]
[348772753,1736778659024,-500.0,0.00010816,2]
[348772754,1736778659035,-500.0,0.00010816,2]
[348772755,1736778659048,-500.0,0.00010816,2]
[348772756,1736778659059,-390.10719794,0.00010816,2]
[348772757,1736778659071,-500.0,0.00010816,2]
[348772758,1736778659083,-500.0,0.00010816,2]
[348772759,1736778659095,-500.0,0.00010816,2]
[348772760,1736778659107,-500.0,0.00010816,2]
[348772761,1736778659118,-595.1,0.00010816,2]
[348772762,1736778659130,-500.0,0.00010816,2]
[348772763,1736778659141,-500.0,0.00010816,2]
[348772764,1736778659152,-500.0,0.00010816,2]
[348772765,1736778659163,-500.0,0.00010816,2]
[348772766,1736778659174,-500.0,0.00010816,2]
[348772767,1736778659185,-500.0,0.00010816,2]
[348772768,1736778659198,-608.85,0.00010816,2]
[348772769,1736778659209,-34.93628639,0.00010816,2]
[348772770,1736778659616,-465.06371361,0.00010816,2]
[348772771,1736778659627,-225.49582027,0.00010816,2]
[348772772,1736778659637,-245.86640879,0.00010816,2]
[348772773,1736778660153,-500.0,9.987e-05,2]
[348772774,1736778660164,-415.4368493,9.987e-05,2]
[348772775,1736778661010,-158.13188,0.000291,120]
[348772776,1736778661056,-496.6454917,0.00033878,60]
[348772777,1736778661095,-3093606.94527056,0.000374,120]
[348772778,1736778661135,-886.62226,0.00037488,30]
[348772779,1736778661173,-185.18518,0.000375,120]
[348772780,1736778661216,-56000.0,0.000376,120]
[348772781,1736778661262,-259.02222222,0.00037644,120]
[348772782,1736778661303,-886.62226,0.00037688,30]
[348772783,1736778661342,-1847520.82543552,0.0003769,120]
[348772784,1736778672120,-500.0,0.00032986,60]
[348772785,1736778672160,-153736.55456448,0.0003769,120]
[348772786,1736778672199,-150.0,0.00037862,120]
[348772787,1736778672235,-151.0,0.0003789,120]
[348772788,1736778672276,-25103.97404481,0.000379,120]
[348772789,1736778672316,-137680.82886,0.000379,30]
[348772790,1736778672358,-297209.63415878,0.000379,120]
[348772791,1736778672711,-207874.354997,0.000379,45]
[348772792,1736778672753,-7019.72067127,0.000379,120]
[348772793,1736778672791,-174.02493635,0.000379,30]
[348772794,1736778672830,-184871.83244247,0.000379,60]
[348772795,1736778672871,-500.0,0.00037999,120]
[348772796,1736778672914,-100000.0,0.00038,38]
[348772797,1736778672956,-5000.0,0.00038,120]
[348772798,1736778673004,-12071.51778766,0.00038,30]
[348772799,1736778673046,-398032.60558983,0.00038,30]
[348772800,1736778673087,-300000.0,0.00038,30]
[348772801,1736778673129,-3000.0,0.00038,60]
[348772802,1736778673169,-3877.0,0.00038,30]
[348772803,1736778673209,-947.02811126,0.00038,120]
[348772804,1736778673254,-400.34757137,0.00038,120]
[348772805,1736778673297,-5000.0,0.00038,60]
[348772806,1736778673337,-5000.0,0.00038,30]
[348772807,1736778673378,-350.0,0.00038,120]
[348772808,1736778673418,-1523.0,0.00038,90]
[348772809,1736778673458,-33859.0,0.00038,60]
[348772810,1736778673504,-2000.0,0.00038,120]
[348772811,1736778673550,-2010.12,0.00038,120]
[348772812,1736778673596,-3390.59886015,0.00038,120]
[348772813,1736778673637,-2242.2971027,0.00038,120]
[348772814,1736778673681,-150.0,0.00038117,120]
[348772815,1736778673723,-738.49815605,0.00038141,120]
[348772816,1736778673765,-156.989,0.0003829,120]
[348772817,1736778673805,-6480.0,0.000383,120]
[348772818,1736778673850,-563.73691089,0.00038325,120]
[348772819,1736778673892,-1969.40027941,0.00038356,30]
[348772820,1736778673934,-200.0,0.00038356,60]
[348772821,1736778673976,-354.38458407,0.000384,33]
[348772822,1736778674017,-259.02222222,0.00038493,120]
[348772823,1736778674056,-500.0,0.00038599,120]
[348772824,1736778674096,-150.0,0.00038695,120]
[348772825,1736778674135,-185.18521,0.000387,120]
[348772826,1736778674172,-23730.17496047,0.000388,120]
[348772827,1736778674213,-151.0,0.00038877,120]
[348772828,1736778674258,-15831.2,0.00038909,117]
[348772829,1736778674301,-150.0,0.00038922,120]
[348772830,1736778674342,-11128.66581776,0.00038987,31]
[348772831,1736778674383,-1000.0,0.00038999,120]
[348772832,1736778674426,-100000.0,0.00039,39]
[348772833,1736778674466,-1387.08699489,0.00039,120]
[348772834,1736778674504,-1112.99999974,0.00039,120]
[348772835,1736778674545,-275.89429846,0.00039,120]
[348772836,1736778674583,-10000.0,0.00039,120]
[348772837,1736778674623,-1000.0,0.00039,120]
[348772838,1736778674662,-100165.69323534,0.00039,120]
[348772839,1736778674703,-150.0,0.00039042,120]
[348772840,1736778674742,-2680.56,0.00039082,120]
[348772841,1736778674784,-1672.67,0.0003909,120]
[348772842,1736778674828,-150.0,0.00039129,120]
[348772843,1736778674871,-150.0,0.00039147,120]
[348772844,1736778674914,-791.22,0.0003916,120]
[348772845,1736778674955,-500.0,0.00039199,120]
[348772846,1736778675003,-5000.0,0.00039216,120]
[348772847,1736778675046,-150.0,0.00039225,120]
[348772848,1736778675088,-1605.21,0.00039243,120]
[348772849,1736778675128,-259.02222222,0.00039342,120]
[348772850,1736778675169,-5000.0,0.00039371,120]
[348772851,1736778675209,-5000.0,0.00039372,120]
[348772852,1736778675253,-5000.0,0.00039376,120]
[348772853,1736778675294,-577.6274463,0.000394,30]
[348772854,1736778675336,-2268.76,0.00039408,120]
[348772855,1736778675377,-2184.11,0.00039412,120]
[348772856,1736778675417,-7032.39209034,0.00039443,60]
[348772857,1736778675458,-7032.39109034,0.00039443,60]
[348772858,1736778675501,-2184.52,0.00039489,120]
[348772859,1736778675544,-157.029,0.0003949,120]
[348772860,1736778675584,-5000.0,0.00039499,120]
[348772861,1736778675628,-268.37,0.00039536,120]
[348772862,1736778675669,-5000.0,0.00039607,120]
[348772863,1736778675707,-5000.0,0.00039608,120]
[348772864,1736778675750,-311.89,0.00039628,120]
[348772865,1736778675789,-2500.0,0.00039727,120]
[348772866,1736778675830,-5000.0,0.00039764,120]
[348772867,1736778675870,-500.0,0.00039799,120]
[348772868,1736778675910,-5000.0,0.00039803,120]
[348772869,1736778675949,-4935.49,0.00039807,120]
[348772870,1736778675991,-3709.0,0.00039845,120]
[348772871,1736778676035,-5000.0,0.00039852,120]
[348772872,1736778676075,-5000.0,0.00039854,120]
[348772873,1736778676114,-151.0,0.00039863,120]
[348772874,1736778676156,-5000.0,0.00039887,120]
[348772875,1736778676200,-631.37208238,0.0003989,60]
[348772876,1736778676243,-5000.0,0.00039902,120]
[348772877,1736778676288,-1104.27,0.00039927,120]
[348772878,1736778676328,-5000.0,0.00039932,120]
[348772879,1736778676371,-12637.79,0.00039957,120]
[348772880,1736778676415,-1000.0,0.00039999,120]
[348772881,1736778676459,-3868.54,0.00039999,120]
[348772882,1736778676503,-43243.92506114,0.0004,30]
[348772883,1736778676546,-477.12749073,0.0004,30]
[348772884,1736778676588,-192.54035252,0.0004,30]
[348772885,1736778676811,-3685.58058801,0.0004,30]
[348772886,1736778676852,-35063.05620045,0.0004,30]
[348772887,1736778676897,-100000.0,0.0004,30]
[348772888,1736778676938,-30163.96119883,0.0004,30]
[348772889,1736778676980,-20089.21,0.0004,30]
[348772890,1736778677025,-1833.19617346,0.0004,30]
[348772891,1736778677066,-10035.0,0.0004,30]
[348772892,1736778677108,-188.0,0.0004,120]
[348772893,1736778677148,-1185.42920598,0.0004,120]
[348772894,1736778677188,-477.77567673,0.0004,120]
[348772895,1736778677228,-42000.0,0.0004,120]
[348772896,1736778677267,-1000.0,0.0004,120]
[348772897,1736778677308,-479.5909562,0.0004,30]
[348772898,1736778677348,-500.0,0.0004,30]
[348772899,1736778677388,-500.0,0.0004,30]
[348772900,1736778677429,-500.0,0.0004,30]
[348772901,1736778677467,-500.0,0.0004,30]
[348772902,1736778677509,-3390.59886015,0.0004,120]
[348772903,1736778677548,-2242.2971027,0.0004,120]
[348772904,1736778677589,-1632.99867269,0.0004,120]
[348772905,1736778677629,-544.06,0.0004,120]
[348772906,1736778677670,-503.4,0.0004,120]
[348772907,1736778677712,-1827.75,0.0004,120]
[348772908,1736778677757,-3440.86099456,0.0004,120]
[348772909,1736778677796,-3948.76188661,0.0004,120]
[348772910,1736778677837,-5000.0,0.0004,120]
[348772911,1736778677880,-600.0,0.0004,120]
[348772912,1736778677922,-40000.0,0.0004,120]
[348772913,1736778677966,-259.02222222,0.00040192,120]
[348772914,1736778678010,-500.0,0.00040399,120]
[348772915,1736778678054,-1000.0,0.00040499,120]
[348772916,1736778678096,-156.941,0.0004069,120]
[348772917,1736778678136,-3366.7689,0.000408,60]
[348772918,1736778678175,-34540.79,0.00040818,117]
[348772919,1736778678215,-151.0,0.00040849,120]
[348772920,1736778678257,-1000.0,0.00040999,120]
[348772921,1736778678296,-500.0,0.00040999,120]
[348772922,1736778678339,-35000.0,0.00041,30]
[348772923,1736778678381,-259.02222222,0.00041041,120]
[348772924,1736778678423,-2265542.72993579,0.00041086,30]
[348772925,1736778696158,-500.0,0.00021917,30]
[348772926,1736778696211,-176.29,0.0002497,30]
[348772927,1736778696253,-150.5,0.0002498,30]
[348772928,1736778696298,-150.5,0.0002499,30]
[348772929,1736778696352,-1402.4,0.000327,30]
[348772930,1736778696394,-2300.0,0.00034274,60]
[348772931,1736778696437,-2300.0,0.0003537,60]
[348772932,1736778696480,-2300.0,0.00036466,60]
[348772933,1736778696523,-2300.0,0.00037562,60]
[348772934,1736778696562,-2300.0,0.00038658,60]
[348772935,1736778696600,-2300.0,0.00039754,60]
[348772936,1736778696640,-560.0,0.0004,120]
[348772937,1736778696679,-2300.0,0.0004085,60]
[348772938,1736778696719,-150.0,0.00041041,120]
[348772939,1736778696758,-2734456.27006421,0.00041086,30]
[348772940,1736778696802,-246354.03993579,0.00041086,30]
[348772941,1736778700681,-3000000.0,0.00041086,30]
[348772942,1736778711058,-419.41,0.00040086,120]
[348772943,1736778711097,-14905.35,0.00040086,120]
[348772944,1736778711135,-446.0,0.00040586,120]
[348772945,1736778711174,-1409673.09891371,0.00041086,30]
[348772946,1736778711212,-4335.2553009,0.00041086,30]
[348772947,1736778711249,-1570220.88578539,0.00041086,30]
[348772948,1736778715616,-334445.58413231,0.00041086,30]
[348772949,1736778715658,-2665554.41586769,0.00041086,30]
[348772951,1736778888901,500.0,0.00023,120]
[348772952,1736778898665,500.0,0.00023,120]
[348772953,1736778910434,500.0,0.00023,120]
[348772954,1736778922527,500.0,0.00023,120]
[348772955,1736778938479,230.53294,0.00023,120]
[348772959,1736778981980,206.08376472,0.00023,120]
[348772960,1736778990805,150.0,0.00022437,120]
[348772961,1736779112291,5500.0,0.00023,120]
[348772964,1736779230526,208.58,0.000192,31]
[348772965,1736779230587,208.58,0.000192,31]
[348772966,1736779230650,208.58,0.000192,31]
[348772967,1736779230709,208.58,0.000192,31]
[348772968,1736779230759,208.58,0.000192,31]
[348772969,1736779230810,208.58,0.000192,31]
[348772970,1736779230858,208.58,0.000192,31]
[348772971,1736779230910,208.58,0.000192,31]
[348772972,1736779230955,208.58,0.000192,31]
[348772973,1736779231019,208.58,0.000192,31]
[348772974,1736779231086,208.58,0.000192,31]
[348772975,1736779231143,208.58,0.000192,31]
[348772976,1736779231199,208.58,0.000192,31]
[348772977,1736779231262,208.58,0.000192,31]
[348772978,1736779231397,208.58,0.000192,31]
[348772979,1736779231519,208.58,0.000192,31]
[348772980,1736779267520,166.36,7.186e-05,2]
[348772981,1736779281104,925.05,8.219e-05,2]
[348773015,1736779832262,-7674.32,8.866e-05,2]
[348773018,1736779832271,-1704.24,8.901e-05,2]
[348773020,1736779832281,-1000.0,8.909e-05,2]
[348773022,1736779832291,-684.84430892,8.909e-05,2]
[348773025,1736779832304,-168.71,8.945e-05,2]
[348773027,1736779832313,-402.85,8.976e-05,2]
[348773028,1736779832323,-250.0,8.994e-05,2]
[348773030,1736779832332,-413.78,8.994e-05,2]
[348773032,1736779832342,-860.54,8.994e-05,2]
[348773034,1736779832352,-1142.09,9.001e-05,2]
[348773036,1736779832362,-150.0,9.014e-05,2]
[348773037,1736779832372,-250.0,9.039e-05,2]
[348773039,1736779832382,-250.0,9.052e-05,2]